[Event "Late-Titled-Tuesday-Blitz-June-25-2024"]
[Site "Chess.com"]
[Date "2024.06.25"]
[Round "11"]
[White "subham777"]
[Black "ManMish2"]
[Result "0-1"]
[WhiteElo "2552"]
[BlackElo "2656"]
[TimeControl "180+1"]
[EndTime "16:07:49 PDT"]
[Termination "ManMish2 won by checkmate"]

1. e4 {[%clk 0:03:00.9]} 1... e5 {[%clk 0:02:59]} 2. Nf3 {[%clk 0:02:55.5]} 2...
Nc6 {[%clk 0:02:59.3]} 3. Bc4 {[%clk 0:02:53.4]} 3... Nf6 {[%clk 0:02:58.1]} 4.
d3 {[%clk 0:02:53.5]} 4... Bc5 {[%clk 0:02:57.5]} 5. c3 {[%clk 0:02:53.4]} 5...
d6 {[%clk 0:02:57.6]} 6. Nbd2 {[%clk 0:02:52.8]} 6... O-O {[%clk 0:02:55.4]} 7.
Nf1 {[%clk 0:02:52.6]} 7... a6 {[%clk 0:02:54]} 8. Ng3 {[%clk 0:02:52.2]} 8...
Ba7 {[%clk 0:02:52.3]} 9. Bg5 {[%clk 0:02:51.4]} 9... h6 {[%clk 0:01:56.2]} 10.
Bh4 {[%clk 0:02:47.8]} 10... Na5 {[%clk 0:01:07.6]} 11. Bb3 {[%clk 0:02:32.9]}
11... Nxb3 {[%clk 0:01:06.7]} 12. axb3 {[%clk 0:02:33.8]} 12... Bg4 {[%clk
0:00:34.8]} 13. Rg1 {[%clk 0:02:26.3]} 13... g5 {[%clk 0:00:32.6]} 14. h3 {[%clk
0:02:16.2]} 14... gxh4 {[%clk 0:00:28.7]} 15. Qd2 {[%clk 0:02:00.1]} 15... hxg3
{[%clk 0:00:25.9]} 16. O-O-O {[%clk 0:01:59.7]} 16... Bxf3 {[%clk 0:00:21.1]}
17. Qxh6 {[%clk 0:01:46.3]} 17... Bxd1 {[%clk 0:00:19.2]} 18. Rxd1 {[%clk
0:01:41.7]} 18... Nh7 {[%clk 0:00:18.6]} 19. f4 {[%clk 0:01:37.2]} 19... Be3+
{[%clk 0:00:16.7]} 20. Kb1 {[%clk 0:01:35.1]} 20... Bxf4 {[%clk 0:00:17.6]} 21.
Qh5 {[%clk 0:01:35.2]} 21... Qg5 {[%clk 0:00:17.4]} 22. Qf3 {[%clk 0:01:34.7]}
22... f5 {[%clk 0:00:16.5]} 23. h4 {[%clk 0:01:30.8]} 23... Qg4 {[%clk
0:00:16.1]} 24. Qf1 {[%clk 0:01:29.5]} 24... fxe4 {[%clk 0:00:15.8]} 25. dxe4
{[%clk 0:01:30.3]} 25... Nf6 {[%clk 0:00:14.2]} 26. Qc4+ {[%clk 0:01:29]} 26...
Kg7 {[%clk 0:00:13.2]} 27. Rh1 {[%clk 0:01:27]} 27... c6 {[%clk 0:00:12.1]} 28.
h5 {[%clk 0:01:26]} 28... Rh8 {[%clk 0:00:12.6]} 29. Qb4 {[%clk 0:01:25.3]}
29... Rxh5 {[%clk 0:00:12.8]} 30. Rxh5 {[%clk 0:01:21.3]} 30... Qxh5 {[%clk
0:00:11.8]} 31. Qxb7+ {[%clk 0:01:21.2]} 31... Qf7 {[%clk 0:00:11.9]} 32. Qxa8
{[%clk 0:01:21.3]} 32... Qxb3 {[%clk 0:00:12.3]} 33. Qxc6 {[%clk 0:01:14]} 33...
Qf7 {[%clk 0:00:12.8]} 34. Qxd6 {[%clk 0:01:10.7]} 34... Nxe4 {[%clk 0:00:12.2]}
35. Qxa6 {[%clk 0:01:10.4]} 35... Qg6 {[%clk 0:00:12]} 36. Qb7+ {[%clk
0:01:08.4]} 36... Kh6 {[%clk 0:00:11.5]} 37. Ka2 {[%clk 0:01:06.2]} 37... Qe6+
{[%clk 0:00:09.8]} 38. Kb1 {[%clk 0:01:03.7]} 38... Nd6 {[%clk 0:00:09.8]} 39.
Qb8 {[%clk 0:00:59.9]} 39... Qg6+ {[%clk 0:00:09.8]} 40. Ka1 {[%clk 0:01:00]}
40... Nf7 {[%clk 0:00:07.1]} 41. Qf8+ {[%clk 0:00:51.9]} 41... Kh7 {[%clk
0:00:06.4]} 42. Qe7 {[%clk 0:00:47.1]} 42... Qf5 {[%clk 0:00:06.6]} 43. c4
{[%clk 0:00:42.9]} 43... e4 {[%clk 0:00:06.1]} 44. c5 {[%clk 0:00:40.3]} 44...
e3 {[%clk 0:00:06.4]} 45. c6 {[%clk 0:00:39.1]} 45... Be5 {[%clk 0:00:05.8]} 46.
c7 {[%clk 0:00:33.7]} 46... e2 {[%clk 0:00:06]} 47. Qb4 {[%clk 0:00:17.7]} 47...
Qf1+ {[%clk 0:00:05.8]} 48. Ka2 {[%clk 0:00:18.2]} 48... e1=Q {[%clk 0:00:05.5]}
49. Qxe1 {[%clk 0:00:15.8]} 49... Qxe1 {[%clk 0:00:06.4]} 50. c8=Q {[%clk
0:00:16.5]} 50... Qa5+ {[%clk 0:00:06.5]} 51. Kb1 {[%clk 0:00:16.5]} 51... Qe1+
{[%clk 0:00:06.5]} 52. Ka2 {[%clk 0:00:16.2]} 52... Qe4 {[%clk 0:00:07.2]} 53.
Qe6 {[%clk 0:00:14.7]} 53... Nd6 {[%clk 0:00:05.4]} 54. Qe7+ {[%clk 0:00:13.4]}
54... Kg6 {[%clk 0:00:05.7]} 55. Qe6+ {[%clk 0:00:13.6]} 55... Kg5 {[%clk
0:00:06]} 56. Qg8+ {[%clk 0:00:11]} 56... Kf4 {[%clk 0:00:06.6]} 57. Qf8+ {[%clk
0:00:10.2]} 57... Ke3 {[%clk 0:00:06.7]} 58. Qg8 {[%clk 0:00:03.6]} 58... Qc4+
{[%clk 0:00:06.9]} 59. Qxc4 {[%clk 0:00:02.9]} 59... Nxc4 {[%clk 0:00:07.8]} 60.
b4 {[%clk 0:00:02.5]} 60... Nd6 {[%clk 0:00:08.3]} 61. Kb3 {[%clk 0:00:03.4]}
61... Kf2 {[%clk 0:00:08.2]} 62. Kc2 {[%clk 0:00:03.2]} 62... Kxg2 {[%clk
0:00:08.2]} 63. Kd3 {[%clk 0:00:04.1]} 63... Kf3 {[%clk 0:00:08.9]} 64. b5
{[%clk 0:00:04.6]} 64... g2 {[%clk 0:00:09.1]} 65. b6 {[%clk 0:00:05.5]} 65...
g1=Q {[%clk 0:00:09.7]} 66. b7 {[%clk 0:00:04.7]} 66... Qd1# {[%clk 0:00:10.1]}
0-1

[Event "Late-Titled-Tuesday-Blitz-June-25-2024"]
[Site "Chess.com"]
[Date "2024.06.25"]
[Round "11"]
[White "Juliana_Figueira"]
[Black "LUISMIGUELOV"]
[Result "1-0"]
[WhiteElo "2042"]
[BlackElo "2229"]
[TimeControl "180+1"]
[EndTime "16:07:50 PDT"]
[Termination "Juliana_Figueira won by resignation"]

1. d4 {[%clk 0:02:59.4]} 1... c6 {[%clk 0:02:55.1]} 2. c4 {[%clk 0:02:58.9]}
2... d5 {[%clk 0:02:54.8]} 3. Nf3 {[%clk 0:02:50.8]} 3... Bg4 {[%clk 0:02:50.6]}
4. Ne5 {[%clk 0:02:48]} 4... h5 {[%clk 0:02:48]} 5. Qc2 {[%clk 0:02:40.4]} 5...
e6 {[%clk 0:02:45.1]} 6. Nxg4 {[%clk 0:02:35.1]} 6... hxg4 {[%clk 0:02:44.2]} 7.
Nd2 {[%clk 0:02:12]} 7... f5 {[%clk 0:02:43.6]} 8. e3 {[%clk 0:02:12]} 8... Bd6
{[%clk 0:02:42.1]} 9. g3 {[%clk 0:02:07.1]} 9... g6 {[%clk 0:02:41.1]} 10. cxd5
{[%clk 0:02:02.7]} 10... exd5 {[%clk 0:02:39.6]} 11. a3 {[%clk 0:01:55.7]} 11...
Nf6 {[%clk 0:02:37.9]} 12. b4 {[%clk 0:01:40.4]} 12... a6 {[%clk 0:02:36.7]} 13.
Nb3 {[%clk 0:01:35.4]} 13... Nbd7 {[%clk 0:02:33]} 14. Nc5 {[%clk 0:01:35.2]}
14... Nxc5 {[%clk 0:02:32.4]} 15. bxc5 {[%clk 0:01:35.5]} 15... Bc7 {[%clk
0:02:29.7]} 16. Qb3 {[%clk 0:01:34.7]} 16... Ba5+ {[%clk 0:02:24.1]} 17. Bd2
{[%clk 0:01:33.3]} 17... Bxd2+ {[%clk 0:02:23.4]} 18. Kxd2 {[%clk 0:01:33.6]}
18... Qa5+ {[%clk 0:02:11.9]} 19. Qb4 {[%clk 0:01:29.2]} 19... Ne4+ {[%clk
0:02:10.4]} 20. Ke1 {[%clk 0:01:25]} 20... Qxb4+ {[%clk 0:02:04.5]} 21. axb4
{[%clk 0:01:23.4]} 21... Kd7 {[%clk 0:01:59.1]} 22. Ra3 {[%clk 0:01:22.6]} 22...
Rae8 {[%clk 0:01:48]} 23. Bg2 {[%clk 0:01:16.7]} 23... Re7 {[%clk 0:01:45.3]}
24. Bxe4 {[%clk 0:01:16.7]} 24... Rxe4 {[%clk 0:01:44.1]} 25. Kf1 {[%clk
0:01:16.9]} 25... g5 {[%clk 0:01:37]} 26. Kg2 {[%clk 0:01:16.1]} 26... Re7
{[%clk 0:01:29.7]} 27. h3 {[%clk 0:01:08.3]} 27... gxh3+ {[%clk 0:01:27.4]} 28.
Rxh3 {[%clk 0:01:08.4]} 28... Rxh3 {[%clk 0:01:27]} 29. Kxh3 {[%clk 0:01:08.8]}
29... Rh7+ {[%clk 0:01:24.5]} 30. Kg2 {[%clk 0:01:09.1]} 30... g4 {[%clk
0:01:24.2]} 31. Ra1 {[%clk 0:01:08.9]} 31... Kc7 {[%clk 0:01:17.4]} 32. f3
{[%clk 0:01:05]} 32... Re7 {[%clk 0:01:00.9]} 33. Kf2 {[%clk 0:01:03]} 33... Rh7
{[%clk 0:00:57.7]} 34. Kg2 {[%clk 0:01:00.9]} 34... gxf3+ {[%clk 0:00:52.4]} 35.
Kxf3 {[%clk 0:00:59.9]} 35... Rh2 {[%clk 0:00:52.2]} 36. Kf4 {[%clk 0:00:57.9]}
36... Rf2+ {[%clk 0:00:51.2]} 37. Ke5 {[%clk 0:00:58.2]} 37... Rf3 {[%clk
0:00:50.7]} 38. Ra3 {[%clk 0:00:51.8]} 38... Rxg3 {[%clk 0:00:42.8]} 39. Kxf5
{[%clk 0:00:51.8]} 39... Rf3+ {[%clk 0:00:42]} 40. Ke5 {[%clk 0:00:51.4]} 40...
b6 {[%clk 0:00:37]} 41. cxb6+ {[%clk 0:00:50.2]} 41... Kxb6 {[%clk 0:00:36.5]}
42. Kd6 {[%clk 0:00:50.6]} 42... Rf6+ {[%clk 0:00:34.6]} 43. Ke5 {[%clk
0:00:46.8]} 43... Rf8 {[%clk 0:00:33.2]} 44. Ra5 {[%clk 0:00:38.7]} 44... Re8+
{[%clk 0:00:32.5]} 45. Kf4 {[%clk 0:00:38.9]} 45... Re4+ {[%clk 0:00:31.5]} 46.
Kf3 {[%clk 0:00:37.8]} 46... Kb7 {[%clk 0:00:23.6]} 47. Rc5 {[%clk 0:00:36.7]}
47... Kb6 {[%clk 0:00:21.4]} 48. Ra5 {[%clk 0:00:30.4]} 48... Rh4 {[%clk
0:00:20.4]} 49. Kg3 {[%clk 0:00:28.6]} 49... Rh1 {[%clk 0:00:19.2]} 50. Kf4
{[%clk 0:00:24.4]} 50... Rf1+ {[%clk 0:00:17.7]} 51. Ke5 {[%clk 0:00:24.3]}
51... Rb1 {[%clk 0:00:13.4]} 52. Kd6 {[%clk 0:00:13]} 52... Rxb4 {[%clk
0:00:11.5]} 53. Rc5 {[%clk 0:00:13.5]} 53... Rc4 {[%clk 0:00:11]} 54. e4 {[%clk
0:00:10.8]} 54... dxe4 {[%clk 0:00:09.4]} 55. Rxc4 {[%clk 0:00:10.4]} 55... Kb5
{[%clk 0:00:07.4]} 56. Rxc6 {[%clk 0:00:09.2]} 56... a5 {[%clk 0:00:06.6]} 57.
Rc1 {[%clk 0:00:09.1]} 57... a4 {[%clk 0:00:05.9]} 58. Ke5 {[%clk 0:00:09.4]}
58... e3 {[%clk 0:00:05.2]} 59. Ke4 {[%clk 0:00:08.8]} 59... e2 {[%clk
0:00:04.6]} 60. Ke3 {[%clk 0:00:09.3]} 60... a3 {[%clk 0:00:04.9]} 61. Kxe2
{[%clk 0:00:09.3]} 61... Kb4 {[%clk 0:00:03.6]} 62. d5 {[%clk 0:00:09.5]} 62...
a2 {[%clk 0:00:03.8]} 63. d6 {[%clk 0:00:09.6]} 63... Kb3 {[%clk 0:00:04.1]} 64.
d7 {[%clk 0:00:09.9]} 64... Kb2 {[%clk 0:00:04.7]} 65. Rh1 {[%clk 0:00:08.4]}
1-0

[Event "Late-Titled-Tuesday-Blitz-June-25-2024"]
[Site "Chess.com"]
[Date "2024.06.25"]
[Round "11"]
[White "CoachVadim"]
[Black "Alblooshi_Hamad"]
[Result "1-0"]
[WhiteElo "2413"]
[BlackElo "2306"]
[TimeControl "180+1"]
[EndTime "16:07:54 PDT"]
[Termination "CoachVadim won by checkmate"]

1. Nf3 {[%clk 0:03:00.9]} 1... Nf6 {[%clk 0:02:59.6]} 2. g3 {[%clk 0:03:00.8]}
2... c5 {[%clk 0:02:59.3]} 3. Bg2 {[%clk 0:03:01.6]} 3... d5 {[%clk 0:02:59.6]}
4. O-O {[%clk 0:03:01.6]} 4... g6 {[%clk 0:03:00.1]} 5. c4 {[%clk 0:03:00.5]}
5... d4 {[%clk 0:02:59.1]} 6. e3 {[%clk 0:03:00.9]} 6... Bg7 {[%clk 0:02:58.3]}
7. exd4 {[%clk 0:03:00.7]} 7... cxd4 {[%clk 0:02:59.2]} 8. b4 {[%clk 0:03:00.8]}
8... O-O {[%clk 0:02:56.4]} 9. Bb2 {[%clk 0:02:58.1]} 9... a5 {[%clk 0:02:54.3]}
10. b5 {[%clk 0:02:53.9]} 10... Qc7 {[%clk 0:02:26.6]} 11. d3 {[%clk 0:02:33.6]}
11... e5 {[%clk 0:02:24.5]} 12. Re1 {[%clk 0:02:19.2]} 12... Nbd7 {[%clk
0:02:24.7]} 13. Nbd2 {[%clk 0:02:08.4]} 13... Re8 {[%clk 0:02:23.9]} 14. Rc1
{[%clk 0:01:59.9]} 14... a4 {[%clk 0:02:16.9]} 15. Ba3 {[%clk 0:01:52]} 15...
Bf8 {[%clk 0:01:41.5]} 16. Bxf8 {[%clk 0:01:35.6]} 16... Kxf8 {[%clk 0:01:42.4]}
17. c5 {[%clk 0:01:27.6]} 17... Qa5 {[%clk 0:01:30.7]} 18. Nc4 {[%clk
0:01:25.6]} 18... Qd8 {[%clk 0:01:01]} 19. Ncxe5 {[%clk 0:01:18.4]} 19... Nxe5
{[%clk 0:01:00.2]} 20. Nxe5 {[%clk 0:01:19.2]} 20... Rxe5 {[%clk 0:00:59.4]} 21.
Rxe5 {[%clk 0:01:18.7]} 21... Bg4 {[%clk 0:00:59.4]} 22. Qe1 {[%clk 0:01:12.9]}
22... Qa5 {[%clk 0:00:55.2]} 23. Qxa5 {[%clk 0:01:00.4]} 23... Rxa5 {[%clk
0:00:56.1]} 24. Bxb7 {[%clk 0:00:35.2]} 24... Rxb5 {[%clk 0:00:55.2]} 25. Bc6
{[%clk 0:00:34.3]} 25... Ra5 {[%clk 0:00:52.4]} 26. f3 {[%clk 0:00:28.4]} 26...
Be6 {[%clk 0:00:50.6]} 27. a3 {[%clk 0:00:26.4]} 27... Ra6 {[%clk 0:00:26.1]}
28. Bb5 {[%clk 0:00:25.2]} 28... Ra5 {[%clk 0:00:26.3]} 29. Bc4 {[%clk
0:00:24.7]} 29... Bf5 {[%clk 0:00:20.5]} 30. f4 {[%clk 0:00:18.2]} 30... Nd7
{[%clk 0:00:20.1]} 31. Rd5 {[%clk 0:00:17.7]} 31... Be6 {[%clk 0:00:19.6]} 32.
Rd6 {[%clk 0:00:06.6]} 32... Nxc5 {[%clk 0:00:16.9]} 33. Bxe6 {[%clk 0:00:04.1]}
33... Nxe6 {[%clk 0:00:16.9]} 34. Rc8+ {[%clk 0:00:03.6]} 34... Kg7 {[%clk
0:00:16.8]} 35. Rd7 {[%clk 0:00:04.1]} 35... Rb5 {[%clk 0:00:16.3]} 36. Re8
{[%clk 0:00:04.1]} 36... Nc5 {[%clk 0:00:15.1]} 37. Rd5 {[%clk 0:00:02.5]} 37...
Rb1+ {[%clk 0:00:14.7]} 38. Kg2 {[%clk 0:00:02.9]} 38... Nxd3 {[%clk 0:00:15]}
39. Rxd4 {[%clk 0:00:03.4]} 39... Ne1+ {[%clk 0:00:12]} 40. Kh3 {[%clk 0:00:03]}
40... Nc2 {[%clk 0:00:11.6]} 41. Rxa4 {[%clk 0:00:03]} 41... Ra1 {[%clk
0:00:10.1]} 42. Re7 {[%clk 0:00:02.8]} 42... Kf6 {[%clk 0:00:09.7]} 43. Raa7
{[%clk 0:00:02.1]} 43... Rxa3 {[%clk 0:00:08.2]} 44. Rxf7+ {[%clk 0:00:03]}
44... Ke6 {[%clk 0:00:06.2]} 45. Rxa3 {[%clk 0:00:03.3]} 45... Nxa3 {[%clk
0:00:05.8]} 46. Rxh7 {[%clk 0:00:04.2]} 46... Nc4 {[%clk 0:00:06.4]} 47. Kg4
{[%clk 0:00:04.3]} 47... Ne3+ {[%clk 0:00:06.1]} 48. Kg5 {[%clk 0:00:04.4]}
48... Nd5 {[%clk 0:00:02.1]} 49. Kxg6 {[%clk 0:00:04.2]} 49... Ne7+ {[%clk
0:00:03]} 50. Rxe7+ {[%clk 0:00:04.4]} 50... Kxe7 {[%clk 0:00:03.3]} 51. f5
{[%clk 0:00:05]} 51... Kf8 {[%clk 0:00:04.2]} 52. f6 {[%clk 0:00:05.5]} 52...
Kg8 {[%clk 0:00:04.7]} 53. h4 {[%clk 0:00:05.4]} 53... Kf8 {[%clk 0:00:04.9]}
54. f7 {[%clk 0:00:06]} 54... Ke7 {[%clk 0:00:04]} 55. Kg7 {[%clk 0:00:06.9]}
55... Ke6 {[%clk 0:00:04.5]} 56. f8=Q {[%clk 0:00:07.8]} 56... Ke5 {[%clk
0:00:04.9]} 57. Qf6+ {[%clk 0:00:07.9]} 57... Ke4 {[%clk 0:00:05.8]} 58. h5
{[%clk 0:00:08.2]} 58... Kd3 {[%clk 0:00:06.7]} 59. h6 {[%clk 0:00:09.1]} 59...
Kc4 {[%clk 0:00:07.6]} 60. h7 {[%clk 0:00:10]} 60... Kb5 {[%clk 0:00:08.3]} 61.
h8=Q {[%clk 0:00:10.9]} 61... Kc5 {[%clk 0:00:08.9]} 62. Qc8+ {[%clk 0:00:10.6]}
62... Kd5 {[%clk 0:00:09.8]} 63. Qce6+ {[%clk 0:00:10.4]} 63... Kc5 {[%clk
0:00:06]} 64. Qc3+ {[%clk 0:00:10.3]} 64... Kb5 {[%clk 0:00:06.1]} 65. Qec6#
{[%clk 0:00:10.9]} 1-0

[Event "Late-Titled-Tuesday-Blitz-June-25-2024"]
[Site "Chess.com"]
[Date "2024.06.25"]
[Round "11"]
[White "Pitomina"]
[Black "NikitaShnadrygin"]
[Result "1/2-1/2"]
[WhiteElo "2584"]
[BlackElo "2751"]
[TimeControl "180+1"]
[EndTime "16:08:05 PDT"]
[Termination "Game drawn - insufficient material"]

1. d4 {[%clk 0:03:00.9]} 1... d5 {[%clk 0:03:00]} 2. Bf4 {[%clk 0:03:01.4]} 2...
Nc6 {[%clk 0:02:59.8]} 3. e3 {[%clk 0:03:01.1]} 3... Nf6 {[%clk 0:02:59]} 4. Nf3
{[%clk 0:02:59.8]} 4... Bg4 {[%clk 0:02:58.8]} 5. Nbd2 {[%clk 0:02:59.2]} 5...
e6 {[%clk 0:02:59.1]} 6. h3 {[%clk 0:02:59.1]} 6... Bh5 {[%clk 0:02:58.7]} 7.
Be2 {[%clk 0:02:57.5]} 7... Bd6 {[%clk 0:02:58.5]} 8. c3 {[%clk 0:02:56.3]} 8...
O-O {[%clk 0:02:57.1]} 9. O-O {[%clk 0:02:56.1]} 9... Bg6 {[%clk 0:02:45.3]} 10.
Re1 {[%clk 0:02:47.4]} 10... Nd7 {[%clk 0:02:45.4]} 11. Qb3 {[%clk 0:02:39.6]}
11... Rb8 {[%clk 0:02:44.7]} 12. Bb5 {[%clk 0:02:32.4]} 12... Ne7 {[%clk
0:02:37.5]} 13. Bxd7 {[%clk 0:02:21.2]} 13... Qxd7 {[%clk 0:02:37.2]} 14. Bxd6
{[%clk 0:02:21.8]} 14... cxd6 {[%clk 0:02:37]} 15. c4 {[%clk 0:02:22.3]} 15...
dxc4 {[%clk 0:02:28]} 16. Nxc4 {[%clk 0:02:23.2]} 16... b5 {[%clk 0:02:11.9]}
17. Ncd2 {[%clk 0:02:23.1]} 17... Rfc8 {[%clk 0:02:09.8]} 18. Rec1 {[%clk
0:02:23]} 18... Nd5 {[%clk 0:02:03.9]} 19. Qa3 {[%clk 0:02:19.1]} 19... b4
{[%clk 0:01:57.7]} 20. Qa5 {[%clk 0:02:17.7]} 20... h6 {[%clk 0:01:48.3]} 21.
Qa6 {[%clk 0:02:01.8]} 21... Nb6 {[%clk 0:01:25.6]} 22. Nb3 {[%clk 0:01:54.1]}
22... Qa4 {[%clk 0:01:11.7]} 23. Na5 {[%clk 0:01:26.9]} 23... Be4 {[%clk
0:00:25.8]} 24. Nd2 {[%clk 0:01:19.4]} 24... Bd5 {[%clk 0:00:16.7]} 25. b3
{[%clk 0:01:16.1]} 25... Qd7 {[%clk 0:00:14.4]} 26. Kh2 {[%clk 0:01:07]} 26...
g5 {[%clk 0:00:13.8]} 27. Qe2 {[%clk 0:01:05]} 27... e5 {[%clk 0:00:12.8]} 28.
e4 {[%clk 0:01:02.4]} 28... Ba8 {[%clk 0:00:12.7]} 29. d5 {[%clk 0:01:02.9]}
29... f5 {[%clk 0:00:12.8]} 30. Qh5 {[%clk 0:01:00.1]} 30... Qg7 {[%clk
0:00:12]} 31. f3 {[%clk 0:00:57.1]} 31... Nd7 {[%clk 0:00:11.3]} 32. exf5 {[%clk
0:00:46.1]} 32... Nf6 {[%clk 0:00:10.7]} 33. Qg6 {[%clk 0:00:46.6]} 33... Qxg6
{[%clk 0:00:09.8]} 34. fxg6 {[%clk 0:00:47.5]} 34... Bxd5 {[%clk 0:00:09.2]} 35.
Ndc4 {[%clk 0:00:47.6]} 35... Rd8 {[%clk 0:00:05.9]} 36. Ne3 {[%clk 0:00:44.7]}
36... Rbc8 {[%clk 0:00:02.3]} 37. Nb7 {[%clk 0:00:43.2]} 37... Bxb7 {[%clk
0:00:02.2]} 38. Nf5 {[%clk 0:00:42.4]} 38... Kf8 {[%clk 0:00:02]} 39. Nxh6
{[%clk 0:00:37.2]} 39... Ne8 {[%clk 0:00:01.6]} 40. Nf5 {[%clk 0:00:37]} 40...
Rxc1 {[%clk 0:00:01.6]} 41. Rxc1 {[%clk 0:00:36.8]} 41... Rc8 {[%clk 0:00:02.5]}
42. Rd1 {[%clk 0:00:36.7]} 42... Bc6 {[%clk 0:00:02.9]} 43. g7+ {[%clk 0:00:32]}
43... Nxg7 {[%clk 0:00:02.9]} 44. Rxd6 {[%clk 0:00:27.9]} 44... Nxf5 {[%clk
0:00:02.9]} 45. Rf6+ {[%clk 0:00:28.6]} 45... Ke7 {[%clk 0:00:03.4]} 46. Rxf5
{[%clk 0:00:29.3]} 46... Ke6 {[%clk 0:00:03.9]} 47. Rxg5 {[%clk 0:00:29.6]}
47... Bd7 {[%clk 0:00:04.6]} 48. Rg6+ {[%clk 0:00:30]} 48... Kd5 {[%clk
0:00:04.5]} 49. Ra6 {[%clk 0:00:30.6]} 49... Rc7 {[%clk 0:00:04.4]} 50. h4
{[%clk 0:00:30.8]} 50... Bb5 {[%clk 0:00:03.5]} 51. Ra5 {[%clk 0:00:22.3]} 51...
a6 {[%clk 0:00:03.1]} 52. a4 {[%clk 0:00:22.9]} 52... bxa3 {[%clk 0:00:03.9]}
53. Rxa3 {[%clk 0:00:23.1]} 53... Rd7 {[%clk 0:00:03]} 54. h5 {[%clk 0:00:23.2]}
54... Rh7 {[%clk 0:00:02.8]} 55. g4 {[%clk 0:00:23.6]} 55... Kd4 {[%clk
0:00:03.5]} 56. Kg3 {[%clk 0:00:24.1]} 56... Kc3 {[%clk 0:00:03.8]} 57. Kh4
{[%clk 0:00:21.3]} 57... Be2 {[%clk 0:00:03.9]} 58. b4+ {[%clk 0:00:19.9]} 58...
Kxb4 {[%clk 0:00:04.2]} 59. Re3 {[%clk 0:00:20.6]} 59... Bc4 {[%clk 0:00:04.2]}
60. g5 {[%clk 0:00:21]} 60... a5 {[%clk 0:00:04.2]} 61. g6 {[%clk 0:00:21.6]}
61... Rh8 {[%clk 0:00:04.7]} 62. Kg5 {[%clk 0:00:22]} 62... a4 {[%clk
0:00:04.8]} 63. h6 {[%clk 0:00:20.7]} 63... a3 {[%clk 0:00:04.7]} 64. h7 {[%clk
0:00:21.2]} 64... a2 {[%clk 0:00:04.5]} 65. Re1 {[%clk 0:00:21.6]} 65... Kc3
{[%clk 0:00:03.9]} 66. Kh6 {[%clk 0:00:21.9]} 66... Kb2 {[%clk 0:00:03.7]} 67.
g7 {[%clk 0:00:21.6]} 67... Rxh7+ {[%clk 0:00:02.8]} 68. Kxh7 {[%clk 0:00:22.5]}
68... a1=Q {[%clk 0:00:02.9]} 69. Rxa1 {[%clk 0:00:22.9]} 69... Kxa1 {[%clk
0:00:03.8]} 70. Kg6 {[%clk 0:00:22.5]} 70... Kb2 {[%clk 0:00:03.7]} 71. Kf5
{[%clk 0:00:23.2]} 71... Kc3 {[%clk 0:00:03.8]} 72. Kxe5 {[%clk 0:00:23.7]}
72... Kb4 {[%clk 0:00:04.4]} 73. Kd6 {[%clk 0:00:17.6]} 73... Kc3 {[%clk
0:00:03.4]} 74. f4 {[%clk 0:00:18.1]} 74... Kd4 {[%clk 0:00:03.8]} 75. f5 {[%clk
0:00:18.7]} 75... Ke4 {[%clk 0:00:04.2]} 76. f6 {[%clk 0:00:18.9]} 76... Kf5
{[%clk 0:00:04.8]} 77. Ke7 {[%clk 0:00:18.3]} 77... Kg6 {[%clk 0:00:05.3]} 78.
Kf8 {[%clk 0:00:18.6]} 78... Kxf6 {[%clk 0:00:04.6]} 79. g8=Q {[%clk 0:00:19.1]}
79... Bxg8 {[%clk 0:00:04.5]} 1/2-1/2